bitfinex/quotes_BTCUSD_20220204
["timestamp","ask_amount","ask_price","bid_price","bid_amount"]
[1643991553376,0.27044279,39853.0,39841.0,0.0462]
[1643991553377,0.32044279,39853.0,39841.0,0.0462]
[1643991553578,0.09264567,39849.0,39841.0,0.0462]
[1643991553778,0.05,39853.0,39841.0,0.0462]
[1643991553978,0.10536276,39850.0,39841.0,0.0462]
[1643991554226,0.00088,39859.0,39845.0,0.062744]
[1643991554620,0.00063299,39856.0,39845.0,0.062744]
[1643991554819,0.34052604,39854.0,39846.0,0.46392509]
[1643991555023,0.09200856,39853.0,39846.0,0.46392509]
[1643991555220,0.12594037,39849.0,39846.0,0.46392509]
[1643991555422,0.21847278,39849.0,39840.0,0.01140927]
[1643991555720,0.10283523,39846.0,39843.0,0.00094446]
[1643991555926,0.09596473,39853.0,39843.0,0.00094446]
[1643991556125,0.09316225,39851.0,39846.0,0.045]
[1643991556323,0.005,39847.0,39846.0,1.89330346]
[1643991556523,0.005,39847.0,39846.0,1.84830346]
[1643991556925,0.005,39847.0,39846.0,1.93807153]
[1643991557124,0.005,39847.0,39846.0,0.39830346]
[1643991557527,0.005,39847.0,39846.0,0.44330346]
[1643991557727,0.005,39847.0,39846.0,0.46104046]
[1643991557967,0.005,39847.0,39846.0,1.21104046]
[1643991558364,0.005,39847.0,39846.0,0.55758726]
[1643991558965,0.005,39847.0,39846.0,0.46104046]
[1643991559167,0.00088,39859.0,39846.0,1.05835159]
[1643991559168,0.005,39848.0,39846.0,1.05835159]
[1643991559374,0.00088,39859.0,39855.0,0.05]
[1643991559375,0.00063298,39856.0,39855.0,0.05]
[1643991559569,0.00063298,39856.0,39855.0,0.1462]
[1643991559771,0.00063298,39856.0,39855.0,0.0962]
[1643991560273,0.00088,39859.0,39856.0,0.09775367]
[1643991560470,0.00253189,39866.0,39860.0,0.062715]
[1643991560672,0.00247189,39866.0,39862.0,0.05]
[1643991560869,0.00247189,39866.0,39865.0,0.95]
[1643991560870,0.00235189,39866.0,39865.0,0.95]
[1643991561071,0.00223189,39866.0,39865.0,0.05]
[1643991561270,0.00217189,39866.0,39864.0,0.0462]
[1643991561474,0.09785752,39872.0,39865.0,0.500209]
[1643991561732,0.002,39872.0,39867.0,0.05]
[1643991562123,0.002,39872.0,39867.0,0.195]
[1643991562322,0.002,39872.0,39867.0,0.05]
[1643991562720,0.002,39872.0,39867.0,0.195]
[1643991562924,0.00263205,39869.0,39867.0,0.195]
[1643991563123,0.00263205,39869.0,39867.0,0.05]
[1643991563720,0.00263205,39869.0,39868.0,0.0462]
[1643991563923,0.002,39869.0,39868.0,0.0462]
[1643991564125,0.002,39869.0,39863.0,0.23032091]
[1643991564322,0.15337099,39868.0,39863.0,0.23032091]
[1643991564520,0.15337099,39868.0,39863.0,0.02032091]
[1643991564720,0.30731062,39864.0,39863.0,0.02032091]
[1643991565126,0.09616658,39864.0,39856.0,0.39550303]
[1643991565323,0.15337099,39868.0,39856.0,0.39550303]
[1643991565324,0.00063201,39868.0,39856.0,0.39550303]
[1643991565570,0.02032091,39864.0,39861.0,0.062717]
[1643991565967,0.01992091,39864.0,39861.0,0.05]
[1643991566168,0.01992091,39864.0,39858.0,0.06272]
[1643991566367,0.01992091,39864.0,39862.0,0.39720163]
[1643991566567,0.01992091,39864.0,39862.0,0.05]
[1643991566966,0.01992091,39864.0,39858.0,0.188151]
[1643991567570,0.01992091,39864.0,39860.0,0.05]
[1643991567769,0.01992091,39864.0,39857.0,0.18815525]
[1643991567972,0.11856206,39864.0,39857.0,0.18815525]
[1643991568175,0.01992091,39864.0,39858.0,0.125431]
[1643991568770,0.01992091,39864.0,39859.0,0.44864175]
[1643991568970,0.01992091,39864.0,39859.0,0.49864175]
[1643991569226,0.01992091,39864.0,39858.0,0.125431]
[1643991569420,0.01992091,39864.0,39858.0,0.062715]
[1643991569618,0.11125864,39864.0,39858.0,0.062715]
[1643991569821,0.12148946,39864.0,39860.0,0.05]
[1643991570119,0.01992091,39864.0,39860.0,0.05]
[1643991570322,0.57604902,39864.0,39857.0,0.125436]
[1643991570521,0.57592902,39864.0,39855.0,0.05]
[1643991570726,0.11906421,39858.0,39855.0,0.05]
[1643991570933,0.11906421,39858.0,39853.0,0.175447]
[1643991570934,0.10003946,39857.0,39853.0,0.175447]
[1643991571123,0.09991946,39857.0,39850.0,0.202381]
[1643991571323,0.09991946,39857.0,39850.0,0.20332565]
[1643991571324,0.09979946,39857.0,39850.0,0.20332565]
[1643991571520,0.09967946,39857.0,39850.0,0.20332565]
[1643991571721,0.09955946,39857.0,39852.0,0.062726]
[1643991571920,0.10298654,39857.0,39854.0,0.05]
[1643991572120,0.66035442,39866.0,39854.0,0.05]
[1643991572121,0.30294412,39866.0,39854.0,0.05]
[1643991572322,0.27471845,39859.0,39852.0,0.062726]
[1643991572523,0.09288314,39858.0,39850.0,0.27877964]
[1643991572719,0.12649423,39860.0,39850.0,0.27877964]
[1643991572967,0.22920633,39860.0,39850.0,0.27877964]
[1643991573165,0.22920633,39860.0,39850.0,1.15437964]
[1643991573567,0.22920633,39860.0,39850.0,1.153435]
[1643991573867,0.1027121,39860.0,39850.0,1.15437964]
[1643991574066,0.28299815,39864.0,39850.0,1.15437964]
[1643991574268,0.10340519,39858.0,39850.0,1.02892864]
[1643991574468,0.10340519,39858.0,39850.0,1.09165864]
[1643991574668,0.10340519,39858.0,39852.0,0.062726]
[1643991574869,0.12967025,39857.0,39850.0,1.05438463]
[1643991575168,0.232935,39857.0,39850.0,1.05438463]
[1643991575368,0.14573676,39851.0,39850.0,1.11711249]
[1643991575571,0.15326475,39857.0,39850.0,1.11711249]
[1643991575770,0.09584948,39855.0,39850.0,1.11711249]
[1643991575975,0.05,39860.0,39850.0,1.05344]
[1643991576169,0.05,39860.0,39850.0,1.05438463]
[1643991576371,0.005,39866.0,39850.0,1.11711498]
[1643991576574,0.34721677,39854.0,39850.0,0.90347463]
[1643991577018,0.32721677,39854.0,39850.0,0.90253]
[1643991577219,0.05,39854.0,39850.0,0.90253]
[1643991577418,0.05,39854.0,39850.0,0.90347463]
[1643991577618,0.12254944,39855.0,39850.0,0.90347463]
[1643991578018,0.05,39855.0,39850.0,0.90347463]
[1643991578319,0.2985851,39859.0,39850.0,0.90253]
[1643991578523,0.3447851,39859.0,39850.0,0.90347463]
[1643991578719,0.35005849,39853.0,39850.0,0.90347463]
[1643991579021,0.05,39853.0,39850.0,0.90347463]
[1643991579417,0.0462,39859.0,39850.0,0.90347463]
[1643991579618,0.0462,39859.0,39850.0,0.90253]
[1643991579818,0.0462,39859.0,39850.0,1.32779262]
[1643991580122,0.38146819,39854.0,39850.0,0.90207464]
[1643991580469,0.43146819,39854.0,39850.0,0.90207464]
[1643991580670,0.062752,39858.0,39850.0,0.90207464]
[1643991580869,0.062752,39858.0,39850.0,0.90113]
[1643991581076,0.545509,39861.0,39852.0,0.39398101]
[1643991581268,0.125509,39861.0,39850.0,0.91329171]
[1643991581468,0.125509,39861.0,39850.0,0.90329167]
[1643991581769,0.34492069,39854.0,39850.0,0.90329167]
[1643991581968,0.34492069,39854.0,39850.0,0.90253631]
[1643991582169,0.34492069,39854.0,39850.0,0.90348132]
[1643991582371,0.49492069,39854.0,39850.0,0.90348132]
[1643991582571,0.34492069,39854.0,39850.0,0.97728132]
[1643991582773,0.341869,39860.0,39850.0,0.97728109]
[1643991582973,0.341869,39860.0,39850.0,0.97728097]
[1643991583270,0.341869,39860.0,39850.0,0.97633596]
[1643991583472,0.341869,39860.0,39850.0,0.97728097]
[1643991583674,3.27276,39861.0,39850.0,0.97728097]
[1643991583871,3.27276,39861.0,39850.0,0.96175097]
[1643991584233,3.32276,39861.0,39850.0,0.96175097]
[1643991584425,0.47,39866.0,39850.0,0.96080596]
[1643991584624,0.00530825,39868.0,39850.0,0.96175097]
[1643991584824,0.29408405,39862.0,39854.0,0.4214151]
[1643991585024,0.29408405,39862.0,39853.0,0.01140565]
[1643991585224,0.00594138,39868.0,39853.0,0.01140563]
[1643991585429,0.00063313,39868.0,39862.0,0.05]
[1643991585627,0.002,39869.0,39857.0,0.05]
[1643991585927,0.00063321,39868.0,39857.0,0.11272604]
[1643991586428,0.00063321,39868.0,39862.0,0.42791044]
[1643991586825,0.1035981,39869.0,39862.0,0.42791044]
[1643991587028,0.3773446,39864.0,39858.0,0.062726]
[1643991587227,0.3773446,39864.0,39855.0,0.05]
[1643991587228,0.11518316,39859.0,39855.0,0.05]
[1643991587427,0.10230384,39858.0,39855.0,0.05]
[1643991587825,0.0976438,39857.0,39855.0,0.05]
[1643991588073,0.09266598,39855.0,39853.0,0.33184956]
[1643991588271,0.10533349,39854.0,39853.0,0.01140553]
[1643991588474,0.52148498,39864.0,39853.0,0.01140553]
[1643991588671,0.27432868,39858.0,39853.0,0.01140553]
[1643991588871,0.09767194,39857.0,39853.0,0.01140553]
[1643991589374,0.1476493,39864.0,39853.0,0.07413853]
[1643991589775,0.37577202,39872.0,39853.0,0.07413853]
[1643991589776,0.37577202,39873.0,39860.0,0.05]
[1643991589975,0.28247103,39870.0,39862.0,0.05]
[1643991590177,0.341869,39869.0,39865.0,0.35587338]
[1643991590375,0.10285993,39868.0,39861.0,0.05]
[1643991590573,0.28247103,39870.0,39861.0,0.05]
[1643991590574,0.10375882,39869.0,39861.0,0.05]
[1643991590775,0.00063927,39869.0,39861.0,0.05]
[1643991591477,0.00063927,39869.0,39866.0,0.3891372]
[1643991591746,0.34022132,39864.0,39861.0,0.05]
[1643991591941,0.15900206,39859.0,39855.0,0.12543256]
[1643991592236,0.09225283,39860.0,39855.0,0.12543256]
[1643991592435,0.34022132,39864.0,39853.0,0.18684541]
[1643991592436,0.34214416,39863.0,39853.0,0.18684541]
[1643991592635,0.09376114,39862.0,39855.0,0.05]
[1643991592834,0.34022132,39864.0,39853.0,0.51712855]
[1643991593034,0.34022132,39864.0,39855.0,0.05]
[1643991593234,0.11367574,39861.0,39855.0,0.05]
[1643991593436,0.00063915,39868.0,39855.0,0.05]
[1643991593636,0.00063915,39868.0,39857.0,0.062723]
[1643991593836,0.08334448,39869.0,39858.0,0.125432]
[1643991594036,0.00255641,39871.0,39858.0,0.125432]
[1643991594241,0.32262176,39873.0,39861.0,0.36496413]
[1643991594437,0.36894121,39869.0,39861.0,0.36496413]
[1643991594636,0.09381723,39868.0,39861.0,0.36496413]
[1643991594836,0.09381723,39868.0,39858.0,0.125432]
[1643991595037,0.09381723,39868.0,39863.0,0.062721]
[1643991595240,0.341869,39867.0,39863.0,0.062721]
[1643991595677,0.001,39875.0,39863.0,0.062721]
[1643991595678,0.32362176,39875.0,39863.0,0.062721]
[1643991595875,0.001,39875.0,39866.0,0.09830844]
[1643991596079,0.001,39875.0,39874.0,1.55]
[1643991596277,0.001,39875.0,39874.0,0.112701]
[1643991596477,0.001,39875.0,39874.0,0.86907763]
[1643991596674,0.001,39875.0,39874.0,0.56907763]
[1643991597579,0.002,39881.0,39874.0,0.61897664]
[1643991597776,0.002,39881.0,39879.0,0.062692]
[1643991597976,0.11448197,39880.0,39879.0,0.062692]
[1643991598175,0.00010099,39880.0,39879.0,0.12538369]
[1643991598377,0.0001,39881.0,39878.0,0.062691]
[1643991598378,0.341969,39881.0,39878.0,0.062691]
[1643991598576,0.00010099,39879.0,39878.0,0.062691]
[1643991598976,0.00010099,39879.0,39871.0,0.125413]
[1643991599239,0.42928171,39880.0,39864.0,0.12541552]
[1643991599432,0.42928171,39880.0,39875.0,0.04989901]
[1643991599433,0.00010099,39877.0,39875.0,0.04989901]
[1643991600229,0.11812296,39876.0,39875.0,0.04989901]
[1643991600430,0.53934949,39876.0,39875.0,0.04989901]
[1643991600629,0.2151761,39876.0,39875.0,0.04989901]
[1643991601229,0.2151761,39876.0,39872.0,0.01800301]
[1643991601428,0.2151761,39876.0,39875.0,0.04989901]
[1643991601630,0.2150561,39876.0,39875.0,0.04989901]
[1643991601829,0.215634,39876.0,39875.0,0.04989901]
[1643991602034,0.215514,39876.0,39875.0,0.04989901]
[1643991602329,0.215334,39876.0,39872.0,0.01800301]
[1643991602530,0.215334,39876.0,39875.0,0.04989901]
[1643991602531,0.0006379,39876.0,39875.0,0.04989901]
[1643991602730,0.00010099,39877.0,39875.0,0.04989901]
[1643991602973,0.00010099,39877.0,39875.0,0.19489901]
[1643991603176,0.0001,39881.0,39875.0,0.04939291]
[1643991603177,0.10055773,39876.0,39875.0,0.04939291]
[1643991603376,0.1531974,39876.0,39875.0,0.04939291]
[1643991603775,0.60416102,39876.0,39875.0,0.04939291]
[1643991603975,0.60476811,39876.0,39875.0,0.04939291]
[1643991604374,0.59997243,39876.0,39875.0,0.04918859]
[1643991605375,0.58757243,39876.0,39864.0,0.30001659]
[1643991605574,0.0001,39881.0,39875.0,0.04918859]
[1643991605575,0.00081141,39878.0,39875.0,0.04918859]
[1643991605776,0.96,39883.0,39875.0,0.05]
[1643991606074,0.09474103,39881.0,39877.0,0.195]
[1643991606278,0.91,39883.0,39882.0,0.145]
[1643991606279,0.9096,39883.0,39882.0,0.145]
[1643991606476,0.9096,39883.0,39882.0,0.19249109]
[1643991606731,0.8996,39883.0,39882.0,0.19249109]
[1643991607526,0.89210891,39883.0,39877.0,0.125379]
[1643991607725,0.8896,39883.0,39877.0,0.125379]
[1643991607924,0.8896,39883.0,39880.0,0.04749109]
[1643991608126,0.8896,39883.0,39882.0,0.04749109]
[1643991608525,0.8896,39883.0,39880.0,0.25518909]
[1643991609125,0.8896,39883.0,39880.0,0.062698]
[1643991609126,0.89023667,39883.0,39880.0,0.062698]
[1643991609324,0.89023667,39883.0,39880.0,0.11018909]
[1643991609523,0.89023667,39883.0,39880.0,0.062698]
[1643991609728,0.89023667,39883.0,39880.0,0.11018909]
[1643991610127,0.8896,39883.0,39880.0,0.062698]
[1643991610328,0.89017667,39883.0,39881.0,0.04749109]
[1643991610574,0.30573561,39883.0,39880.0,0.062698]
[1643991610774,0.30561561,39883.0,39882.0,0.19249109]
[1643991610974,0.30555561,39883.0,39881.0,0.09749109]
[1643991611174,0.30543561,39883.0,39880.0,0.012698]
[1643991611373,0.30473894,39883.0,39880.0,0.012698]
[1643991611576,0.29800213,39881.0,39880.0,0.012698]
[1643991611777,0.64226004,39881.0,39880.0,0.012698]
[1643991611974,0.15357733,39882.0,39877.0,0.125379]
[1643991612177,0.15345733,39882.0,39877.0,0.125379]
[1643991612379,0.72449894,39883.0,39877.0,0.125379]
[1643991612574,0.72437894,39883.0,39877.0,0.125379]
[1643991612777,0.00051667,39881.0,39877.0,0.125379]
[1643991612975,0.00045667,39881.0,39877.0,0.125379]
[1643991613177,0.00033667,39881.0,39879.0,0.05]
[1643991613379,0.00025945,39881.0,39877.0,0.56005015]
[1643991613577,1.04763076,39883.0,39877.0,0.56005015]
[1643991613578,1.04613021,39883.0,39877.0,0.56005015]
[1643991613979,0.72181839,39883.0,39877.0,0.56005015]
[1643991614422,0.30181839,39883.0,39882.0,0.195]
[1643991614620,0.30181839,39883.0,39880.0,0.06269]
[1643991614820,0.30181839,39883.0,39880.0,0.11269]
[1643991615028,0.27511839,39883.0,39882.0,0.05]
[1643991615222,0.2753093,39883.0,39882.0,0.05]
[1643991616023,0.2753093,39883.0,39880.0,0.06269]
[1643991616222,0.27511839,39883.0,39880.0,0.06269]
[1643991617023,0.341839,39882.0,39879.0,0.125382]
[1643991617223,0.27511839,39883.0,39879.0,0.125382]
[1643991617423,0.26511839,39883.0,39879.0,0.125382]
[1643991617627,0.2653093,39883.0,39879.0,0.125382]
[1643991618471,0.26511839,39883.0,39879.0,0.125382]
[1643991618772,0.26575346,39883.0,39879.0,0.125382]
[1643991618973,0.26575346,39883.0,39878.0,0.125397]
[1643991619770,0.36861892,39883.0,39878.0,0.125397]
[1643991619972,0.26511839,39883.0,39878.0,0.125397]
[1643991620672,0.26511839,39883.0,39878.0,0.062698]
[1643991621471,0.30145468,39879.0,39878.0,0.062698]
[1643991621731,0.30145468,39879.0,39875.0,0.145]
[1643991621732,0.15503466,39876.0,39875.0,0.145]
[1643991622124,0.14943466,39876.0,39875.0,0.145]
[1643991622424,0.30145468,39879.0,39875.0,0.135]
[1643991623225,0.13327128,39880.0,39875.0,0.135]
[1643991623426,0.26511839,39883.0,39877.0,0.1]
[1643991623628,0.26511839,39883.0,39875.0,0.185]
[1643991623826,0.26575217,39883.0,39875.0,0.185]
[1643991624024,0.35918992,39883.0,39875.0,0.185]
[1643991624525,0.13919695,39879.0,39875.0,0.185]
[1643991624828,0.26511839,39883.0,39882.0,0.135]
[1643991625028,0.2657522,39883.0,39882.0,0.935]
[1643991625326,0.2657522,39883.0,39882.0,0.185]
[1643991625972,0.2657522,39883.0,39880.0,0.05]
[1643991625973,0.26511839,39883.0,39880.0,0.112687]
[1643991626174,0.25511839,39883.0,39880.0,0.288055]
[1643991626372,0.25511839,39883.0,39880.0,0.175368]
[1643991626572,0.25511839,39883.0,39880.0,0.225368]
[1643991626773,0.25511839,39883.0,39880.0,0.125368]
[1643991627173,0.25511839,39883.0,39880.0,0.250732]
[1643991627372,0.25575223,39883.0,39880.0,0.250732]
[1643991627572,0.25575223,39883.0,39880.0,0.125368]
[1643991627773,0.25575223,39883.0,39880.0,0.062687]
[1643991627972,0.29467334,39882.0,39880.0,0.062687]
[1643991628178,0.25575223,39883.0,39880.0,0.062687]
[1643991628374,0.25511839,39883.0,39880.0,0.062687]
[1643991628573,0.25575223,39883.0,39880.0,0.062687]
[1643991628772,0.25575223,39883.0,39880.0,0.048587]
[1643991629418,0.25511839,39883.0,39880.0,0.048587]
[1643991629819,0.25575223,39883.0,39880.0,0.048587]
[1643991630620,0.25511839,39883.0,39880.0,0.048587]
[1643991631023,0.25575223,39883.0,39880.0,0.048587]
[1643991631421,0.3536081,39881.0,39880.0,0.048587]
[1643991631626,0.3536081,39881.0,39879.0,0.125373]
[1643991631825,0.6954471,39881.0,39878.0,0.1254]
[1643991632026,0.78844329,39880.0,39878.0,0.1254]
[1643991632228,0.36348882,39879.0,39866.0,0.00094683]
[1643991632424,0.36348882,39879.0,39869.0,0.062712]
[1643991632425,0.09659254,39878.0,39869.0,0.062712]
[1643991632630,0.25575221,39883.0,39876.0,0.05]
[1643991632825,0.30575221,39883.0,39876.0,0.225398]
[1643991633071,0.25575221,39883.0,39879.0,0.185]
[1643991633271,0.25511839,39883.0,39879.0,0.55912096]
[1643991633476,0.25575221,39883.0,39879.0,0.67181196]
[1643991633673,0.25575221,39883.0,39880.0,0.235]
[1643991633875,0.25575221,39883.0,39880.0,0.05]
[1643991634074,0.25575221,39883.0,39879.0,0.43681196]
[1643991634273,0.25575221,39883.0,39879.0,0.062691]
[1643991634473,0.25511839,39883.0,39879.0,0.05962096]
[1643991634675,0.25575223,39883.0,39879.0,0.05962096]
[1643991635278,0.25575223,39883.0,39881.0,0.4664014]
[1643991635475,0.25575223,39883.0,39880.0,0.250755]
[1643991635675,0.25511839,39883.0,39881.0,0.062691]
[1643991635876,0.25511839,39883.0,39880.0,0.188066]
[1643991636080,0.15303796,39882.0,39880.0,0.188066]
[1643991636379,0.49487696,39882.0,39876.0,0.125418]
[1643991636577,0.29305523,39879.0,39876.0,0.062708]
[1643991637049,3.49834257,39885.0,39876.0,0.062708]
[1643991637053,0.001,39898.0,39884.0,0.135]
[1643991637233,0.02619526,39913.0,39900.0,0.15]
[1643991637529,0.0001571,39921.0,39911.0,0.185]
[1643991637530,0.62420966,39920.0,39911.0,0.185]
[1643991637727,0.62420966,39920.0,39912.0,0.0462]
[1643991637933,0.62420966,39920.0,39906.0,0.05]
[1643991637934,0.341829,39919.0,39913.0,0.0462]
[1643991638128,0.0001571,39921.0,39904.0,0.0462]
[1643991638129,0.07606647,39917.0,39904.0,0.0462]
[1643991638327,0.28479894,39906.0,39901.0,0.5]
[1643991638527,0.07606647,39917.0,39905.0,0.125319]
[1643991638729,0.31348882,39916.0,39905.0,0.250638]
[1643991638933,0.05,39926.0,39905.0,0.250638]
[1643991638934,0.15665583,39919.0,39914.0,0.135]
[1643991639129,0.15665583,39919.0,39906.0,1.96348882]
[1643991639130,0.001,39924.0,39916.0,0.341829]
[1643991639329,0.0139,39936.0,39917.0,0.35968882]
[1643991639529,0.0139,39936.0,39916.0,0.25054301]
[1643991639530,0.05,39931.0,39916.0,0.25054301]
[1643991639733,0.7,39917.0,39903.0,0.5]
[1643991639939,0.7,39917.0,39902.0,0.062651]
[1643991639940,1.5,39916.0,39902.0,0.062651]
[1643991640134,1.341829,39915.0,39892.0,0.44848882]
[1643991640334,1.5,39916.0,39892.0,0.44848882]
[1643991640335,0.28361307,39900.0,39893.0,0.31348882]
[1643991640588,0.41242745,39914.0,39894.0,0.135]
[1643991640790,0.05,39910.0,39895.0,0.31348882]
[1643991640990,0.41242745,39914.0,39892.0,0.135]
[1643991640991,0.16149522,39905.0,39892.0,0.135]
[1643991641191,0.00063261,39905.0,39894.0,0.341829]
[1643991641395,0.43373306,39895.0,39891.0,0.16246]
[1643991641594,0.43373306,39895.0,39891.0,0.02746]
[1643991641595,0.04733909,39895.0,39891.0,0.02746]
[1643991641999,0.0462,39894.0,39891.0,0.02746]
[1643991642196,0.0479717,39895.0,39891.0,0.02746]
[1643991642392,0.0479717,39895.0,39880.0,0.31348882]
[1643991642393,0.83656847,39894.0,39880.0,0.31348882]
[1643991642598,0.83656847,39894.0,39875.0,0.01139924]
[1643991642599,0.34212627,39881.0,39875.0,0.01139918]
[1643991642896,0.0462,39880.0,39875.0,0.01139918]
[1643991643093,0.341829,39878.0,39875.0,0.01139918]
[1643991643297,0.04196429,39877.0,39875.0,0.01139918]
[1643991643493,0.48871874,39880.0,39875.0,0.01139918]
[1643991643895,0.0462,39880.0,39879.0,0.135]
[1643991644092,0.00063256,39883.0,39879.0,0.476829]
[1643991644342,0.0462,39886.0,39876.0,0.05]
[1643991644647,0.0462,39886.0,39875.0,0.10766909]
[1643991644648,0.00031614,39883.0,39875.0,0.10766909]
[1643991644841,0.42466286,39877.0,39875.0,0.10766909]
[1643991645053,0.13115289,39877.0,39875.0,0.20394907]
[1643991645244,0.38558028,39881.0,39876.0,0.25077]
[1643991645443,0.38558028,39881.0,39876.0,0.26216904]
[1643991645843,0.00031614,39883.0,39876.0,0.01139904]
[1643991646047,0.32619702,39887.0,39880.0,0.185]
[1643991646248,0.31348882,39896.0,39883.0,0.135]
[1643991646249,0.0462,39896.0,39883.0,0.135]
[1643991646448,0.31348882,39895.0,39883.0,0.09625]
[1643991646646,0.341829,39894.0,39883.0,0.09625]
[1643991646842,0.09617085,39895.0,39883.0,0.09625]
[1643991646843,0.43708947,39885.0,39883.0,0.09625]
[1643991647043,0.43708947,39885.0,39883.0,0.158952]
[1643991647044,0.09526047,39885.0,39883.0,0.158952]
[1643991647246,0.11365901,39900.0,39883.0,0.208952]
[1643991647445,0.11365901,39900.0,39885.0,0.341829]
[1643991647446,0.10215539,39899.0,39885.0,0.341829]
[1643991647747,0.13646134,39894.0,39883.0,0.28125]
[1643991647990,0.44911385,39886.0,39883.0,0.09625]
[1643991648183,0.44911385,39886.0,39884.0,0.062696]
[1643991648381,0.37520747,39891.0,39884.0,0.062696]
[1643991648581,0.00063182,39890.0,39884.0,0.062696]
[1643991649180,0.07614767,39889.0,39884.0,0.062696]
[1643991649381,0.41229206,39888.0,39884.0,0.062696]
[1643991649581,0.341829,39887.0,39884.0,0.062696]
[1643991649781,0.341829,39886.0,39884.0,0.062696]
[1643991650584,0.341769,39886.0,39884.0,0.062696]
[1643991650781,0.05,39887.0,39877.0,0.06139864]
[1643991650782,0.63514066,39885.0,39877.0,0.06139864]
[1643991650986,0.49454782,39884.0,39880.0,0.062703]
[1643991651187,0.29319166,39885.0,39877.0,0.1368016]
[1643991651388,0.33017938,39879.0,39877.0,0.13680156]
[1643991651588,0.33017938,39879.0,39877.0,0.01139856]
[1643991651589,0.341882,39878.0,39877.0,0.01139856]
[1643991651836,0.68774166,39878.0,39877.0,0.01139854]
[1643991652038,0.68774166,39878.0,39868.0,0.21274022]
[1643991652039,0.13927262,39878.0,39868.0,0.21274022]
[1643991652239,0.05,39882.0,39869.0,0.55462222]
[1643991652436,0.05,39874.0,39869.0,0.2203511]
[1643991652635,0.05,39881.0,39870.0,0.341882]
[1643991652935,0.05,39878.0,39871.0,0.341882]
[1643991653135,0.22411004,39876.0,39871.0,0.34949281]
[1643991653334,0.22411004,39876.0,39872.0,0.125412]
[1643991653538,0.08692046,39876.0,39872.0,0.13302279]
[1643991653837,0.05692046,39876.0,39872.0,0.13302279]
[1643991654037,0.05692046,39876.0,39872.0,0.13302277]
[1643991654240,0.46612604,39875.0,39872.0,0.13302277]
[1643991654438,0.05,39874.0,39872.0,0.13302277]
[1643991654936,0.46612604,39875.0,39872.0,0.13302277]
[1643991655135,0.05,39874.0,39872.0,0.13302277]
[1643991655582,0.10117488,39883.0,39872.0,0.13302277]
[1643991655583,0.00019096,39877.0,39872.0,0.21069574]
[1643991655782,0.00019096,39877.0,39874.0,0.006769]
[1643991655985,0.00019096,39877.0,39874.0,0.01437973]
[1643991656183,0.05,39876.0,39874.0,0.00761073]
[1643991656983,0.09430375,39876.0,39874.0,0.00761073]
[1643991657384,0.05,39875.0,39874.0,0.28275387]
[1643991657786,0.21317368,39887.0,39874.0,0.28275385]
[1643991657985,0.33468125,39876.0,39874.0,0.00761071]
[1643991658186,0.05,39875.0,39874.0,0.00761071]
[1643991658384,0.391882,39875.0,39874.0,0.00761071]
[1643991658587,0.391882,39875.0,39874.0,0.00761067]
[1643991658786,0.60596334,39875.0,39874.0,0.00761067]
[1643991659220,0.48046229,39875.0,39874.0,0.00761067]
[1643991659621,0.46546229,39875.0,39874.0,0.00761067]
[1643991660121,0.12358029,39875.0,39874.0,0.00761067]
[1643991660523,0.035,39878.0,39874.0,0.02261067]
[1643991660724,0.13934326,39887.0,39877.0,1.671747]
[1643991660927,0.5629,39895.0,39877.0,1.671747]
[1643991660928,0.70236186,39895.0,39886.0,0.015]
[1643991661125,0.7828,39899.0,39880.0,0.00761048]
[1643991661323,0.02203142,39887.0,39880.0,0.00761044]
[1643991661522,0.11618299,39883.0,39880.0,0.00761044]
[1643991661722,0.02203142,39882.0,39880.0,0.00761044]
[1643991661928,0.11618299,39883.0,39872.0,0.05]
[1643991661929,1.1,39880.0,39872.0,0.05]
[1643991662130,1.1,39880.0,39868.0,0.00091037]
[1643991662131,0.05,39873.0,39868.0,0.00091037]
[1643991662330,0.05,39869.0,39868.0,0.00091037]
[1643991662525,0.48447476,39869.0,39868.0,0.00091037]
[1643991662728,0.48447476,39869.0,39857.0,0.5747779]
[1643991662729,0.05,39867.0,39857.0,0.5747779]
[1643991662991,0.27533145,39862.0,39857.0,0.250818]
[1643991663187,0.36705338,39861.0,39855.0,0.4436]
[1643991663384,0.05,39858.0,39855.0,0.4436]
[1643991663584,0.09898453,39857.0,39852.0,0.125466]
[1643991663884,0.09898453,39857.0,39850.0,0.8756]
[1643991663885,0.25119956,39857.0,39850.0,0.8756]
[1643991664184,0.14898453,39857.0,39853.0,0.00091185]
[1643991664489,0.05,39854.0,39853.0,0.00091185]
[1643991664784,0.09488822,39864.0,39854.0,0.341882]
[1643991664984,0.05,39859.0,39856.0,0.062732]
[1643991665183,0.09984584,39862.0,39853.0,0.00091185]
[1643991665184,0.05,39858.0,39853.0,0.00091185]
[1643991665382,0.09369785,39857.0,39851.0,0.341882]
[1643991665581,0.15117016,39856.0,39851.0,0.341882]
[1643991665785,0.15117016,39856.0,39835.0,0.188198]
[1643991665786,0.55,39853.0,39835.0,0.188198]
[1643991665985,0.05,39840.0,39835.0,0.31919035]
[1643991666191,1.98331887,39851.0,39824.0,2.10054963]
[1643991666192,0.05,39836.0,39824.0,2.10054963]
[1643991666385,0.10112873,39835.0,39824.0,2.03230628]
[1643991666584,0.0462,39837.0,39824.0,1.97730628]
[1643991666585,0.09738342,39834.0,39824.0,1.97730628]
[1643991666826,0.09738342,39834.0,39824.0,1.97756918]
[1643991666827,0.67554951,39825.0,39824.0,1.97756918]
[1643991667032,0.50998625,39827.0,39825.0,0.06263227]
[1643991667223,0.9,39825.0,39824.0,1.97730628]
[1643991667429,0.9,39825.0,39816.0,0.1448929]
[1643991667430,0.43928243,39823.0,39816.0,0.1448929]
[1643991667625,0.11413642,39817.0,39816.0,0.14463]
[1643991667823,0.21250103,39817.0,39816.0,0.14463]
[1643991668024,0.11273595,39817.0,39816.0,0.14463]
[1643991668222,0.71168772,39818.0,39816.0,0.14463]
[1643991668425,0.341945,39818.0,39816.0,0.19463]
[1643991668624,0.7337,39833.0,39816.0,0.19463]
[1643991668625,0.32228888,39832.0,39816.0,0.19463]
[1643991668825,1.42228888,39832.0,39816.0,0.4448929]